[Event "*** Qualifier 3: Titled Tuesday 3|2 Blitz"]
[Site "Chess.com"]
[Date "2017.04.18"]
[Round "9"]
[White "GamayevOleg"]
[Black "woodhy"]
[Result "0-1"]
[WhiteElo "2392"]
[BlackElo "2363"]
[TimeControl "180+2"]
[EndTime "15:01:41 PDT"]
[Termination "woodhy won by resignation"]

1. d3 {[%clk 0:03:01.9]} 1... e6 {[%clk 0:02:35.5]} 2. e4 {[%clk 0:03:03.8]}
2... d5 {[%clk 0:02:35.7]} 3. Nf3 {[%clk 0:03:05.2]} 3... Nf6 {[%clk 0:02:36.5]}
4. Nbd2 {[%clk 0:03:05.4]} 4... c5 {[%clk 0:02:37.7]} 5. Be2 {[%clk 0:03:06.6]}
5... Nc6 {[%clk 0:02:38.5]} 6. O-O {[%clk 0:03:08.1]} 6... Be7 {[%clk
0:02:38.2]} 7. Re1 {[%clk 0:03:09.5]} 7... b6 {[%clk 0:02:38.7]} 8. c3 {[%clk
0:03:10.2]} 8... Bb7 {[%clk 0:02:39.2]} 9. a4 {[%clk 0:03:11.3]} 9... O-O {[%clk
0:02:39.8]} 10. exd5 {[%clk 0:03:13.2]} 10... Nxd5 {[%clk 0:02:40.6]} 11. Nb3
{[%clk 0:03:14.5]} 11... Bf6 {[%clk 0:02:41.2]} 12. Bf1 {[%clk 0:03:14.9]} 12...
Ba6 {[%clk 0:02:41.4]} 13. a5 {[%clk 0:03:14.4]} 13... Qc7 {[%clk 0:02:38.1]}
14. axb6 {[%clk 0:03:15.2]} 14... axb6 {[%clk 0:02:40]} 15. Qc2 {[%clk
0:03:11.2]} 15... Rfd8 {[%clk 0:02:39.8]} 16. Bg5 {[%clk 0:03:03.1]} 16... Bxg5
{[%clk 0:02:38.4]} 17. Nxg5 {[%clk 0:03:05]} 17... h6 {[%clk 0:02:39.5]} 18. Nf3
{[%clk 0:03:02.7]} 18... Nf4 {[%clk 0:02:38.9]} 19. Rad1 {[%clk 0:02:58.6]}
19... Bb7 {[%clk 0:02:32.8]} 20. Nbd2 {[%clk 0:02:56.9]} 20... Ne7 {[%clk
0:02:29.4]} 21. g3 {[%clk 0:02:55.8]} 21... Nfg6 {[%clk 0:02:10.5]} 22. Bg2
{[%clk 0:02:53]} 22... Bc6 {[%clk 0:02:08.2]} 23. Nc4 {[%clk 0:02:37.8]} 23...
Qb7 {[%clk 0:02:01.2]} 24. Qe2 {[%clk 0:02:37]} 24... b5 {[%clk 0:02:01.3]} 25.
Ncd2 {[%clk 0:02:32.9]} 25... Ra2 {[%clk 0:01:59.9]} 26. Ne4 {[%clk 0:02:31.9]}
26... Qb6 {[%clk 0:01:50]} 27. Rb1 {[%clk 0:02:24.5]} 27... Nf5 {[%clk
0:01:32.1]} 28. Ra1 {[%clk 0:02:17.7]} 28... Rxa1 {[%clk 0:01:18.8]} 29. Rxa1
{[%clk 0:02:18.2]} 29... Nd6 {[%clk 0:01:19.9]} 30. Nxd6 {[%clk 0:02:15]} 30...
Rxd6 {[%clk 0:01:21.8]} 31. Ne1 {[%clk 0:02:15.6]} 31... Bxg2 {[%clk 0:01:20.4]}
32. Kxg2 {[%clk 0:02:16.9]} 32... Qb7+ {[%clk 0:01:21]} 33. Qf3 {[%clk
0:02:17.2]} 33... Qd7 {[%clk 0:01:20.6]} 34. Qe3 {[%clk 0:02:13]} 34... Qc6+
{[%clk 0:01:18.8]} 35. Kg1 {[%clk 0:02:12.4]} 35... Ne7 {[%clk 0:01:13.4]} 36.
Qe4 {[%clk 0:02:06]} 36... Qxe4 {[%clk 0:01:12.5]} 37. dxe4 {[%clk 0:02:05.6]}
37... Rd2 {[%clk 0:01:14.4]} 38. Rb1 {[%clk 0:02:03.1]} 38... Nc6 {[%clk
0:01:13.5]} 39. Nf3 {[%clk 0:02:03.3]} 39... Re2 {[%clk 0:01:14.3]} 40. Kf1
{[%clk 0:01:52.6]} 40... Rxe4 {[%clk 0:01:14.8]} 41. Ra1 {[%clk 0:01:54.3]}
41... b4 {[%clk 0:01:14.6]} 42. Ra8+ {[%clk 0:01:53.9]} 42... Kh7 {[%clk
0:01:15]} 43. Rc8 {[%clk 0:01:55.4]} 43... bxc3 {[%clk 0:01:14.7]} 44. bxc3
{[%clk 0:01:56.8]} 44... Ne5 {[%clk 0:00:53.6]} 45. Nd2 {[%clk 0:01:57.6]} 45...
Ra4 {[%clk 0:00:54]} 46. Rxc5 {[%clk 0:01:57.4]} 46... Nd3 {[%clk 0:00:52.2]}
47. Rc7 {[%clk 0:01:57.2]} 47... Ra2 {[%clk 0:00:45.6]} 48. Ke2 {[%clk
0:01:55.8]} 48... Nxf2 {[%clk 0:00:46.4]} 49. Kxf2 {[%clk 0:01:54.2]} 49...
Rxd2+ {[%clk 0:00:46.7]} 50. Ke3 {[%clk 0:01:56]} 50... Rxh2 {[%clk 0:00:45.2]}
51. Rxf7 {[%clk 0:01:57.1]} 51... Rg2 {[%clk 0:00:42.4]} 52. Kf3 {[%clk
0:01:55.9]} 52... Rc2 {[%clk 0:00:43.5]} 53. Rc7 {[%clk 0:01:56.9]} 53... Kg6
{[%clk 0:00:45]} 54. Kf4 {[%clk 0:01:46.2]} 54... Kf6 {[%clk 0:00:42.2]} 55. g4
{[%clk 0:01:43.3]} 55... g5+ {[%clk 0:00:38.1]} 56. Ke4 {[%clk 0:01:43.4]} 56...
Rf2 {[%clk 0:00:37]} 57. Rc4 {[%clk 0:01:34.1]} 57... Rf4+ {[%clk 0:00:22.3]}
58. Kd3 {[%clk 0:01:35.3]} 58... Ke5 {[%clk 0:00:24.2]} 59. Rb4 {[%clk
0:01:29.2]} 59... Kd5 {[%clk 0:00:19.7]} 60. Rb5+ {[%clk 0:01:25.4]} 60... Kc6
{[%clk 0:00:21]} 61. Rb4 {[%clk 0:01:26.7]} 61... Kd5 {[%clk 0:00:20.7]} 62.
Rb5+ {[%clk 0:01:27.5]} 62... Kc6 {[%clk 0:00:21.8]} 63. Rb4 {[%clk 0:01:28.8]}
63... Kc5 {[%clk 0:00:23.3]} 64. Re4 {[%clk 0:01:21.7]} 64... Kd5 {[%clk
0:00:23.5]} 65. Rb4 {[%clk 0:01:22.1]} 65... e5 {[%clk 0:00:24.7]} 66. Rb5+
{[%clk 0:01:21.6]} 66... Kd6 {[%clk 0:00:26.1]} 67. Rb6+ {[%clk 0:01:22]} 67...
Kc5 {[%clk 0:00:27.4]} 68. Rxh6 {[%clk 0:01:22.2]} 68... Rxg4 {[%clk 0:00:28.8]}
69. Rh8 {[%clk 0:01:17.9]} 69... Kd5 {[%clk 0:00:29.1]} 70. c4+ {[%clk 0:01:16]}
70... Kc5 {[%clk 0:00:29.1]} 71. Rc8+ {[%clk 0:01:16.3]} 71... Kd6 {[%clk
0:00:30.5]} 72. Rd8+ {[%clk 0:01:17]} 72... Ke7 {[%clk 0:00:30.7]} 73. Rd5
{[%clk 0:01:17.3]} 73... Ke6 {[%clk 0:00:32.2]} 74. Rd8 {[%clk 0:01:17.9]} 74...
Rg3+ {[%clk 0:00:33.3]} 75. Ke4 {[%clk 0:01:17]} 75... Rg4+ {[%clk 0:00:34.7]}
76. Kd3 {[%clk 0:01:18]} 76... Rf4 {[%clk 0:00:36.6]} 77. c5 {[%clk 0:01:18.3]}
77... Ke7 {[%clk 0:00:37.1]} 78. Rd5 {[%clk 0:01:17.8]} 78... Ke6 {[%clk
0:00:37.8]} 79. Rd6+ {[%clk 0:01:19.3]} 79... Ke7 {[%clk 0:00:39.4]} 80. Rd5
{[%clk 0:01:20.7]} 80... Ke6 {[%clk 0:00:40.4]} 81. Rd6+ {[%clk 0:01:22.3]}
81... Kf5 {[%clk 0:00:41.9]} 82. c6 {[%clk 0:01:21.9]} 82... Rf1 {[%clk
0:00:43.1]} 83. Kd2 {[%clk 0:01:19.9]} 83... Rf2+ {[%clk 0:00:43.2]} 84. Kc3
{[%clk 0:01:19.2]} 84... Rf1 {[%clk 0:00:44.4]} 85. Rd2 {[%clk 0:01:16.7]} 85...
Rc1+ {[%clk 0:00:43.9]} 86. Rc2 {[%clk 0:01:18.1]} 86... Rxc2+ {[%clk
0:00:45.2]} 87. Kxc2 {[%clk 0:01:18.9]} 87... Ke6 {[%clk 0:00:46.5]} 88. Kd3
{[%clk 0:01:20.8]} 88... Kd6 {[%clk 0:00:47.3]} 89. Ke4 {[%clk 0:01:22.7]} 89...
g4 {[%clk 0:00:48.4]} 0-1

[Event "*** Qualifier 3: Titled Tuesday 3|2 Blitz"]
[Site "Chess.com"]
[Date "2017.04.18"]
[Round "9"]
[White "chessking2151"]
[Black "Aygehovit1992"]
[Result "1/2-1/2"]
[WhiteElo "2339"]
[BlackElo "2422"]
[TimeControl "180+2"]
[EndTime "15:01:54 PDT"]
[Termination "Game drawn by agreement"]

1. e4 {[%clk 0:03:02]} 1... d6 {[%clk 0:03:01.3]} 2. d4 {[%clk 0:03:02.6]} 2...
g6 {[%clk 0:03:03.2]} 3. Nc3 {[%clk 0:03:02.7]} 3... Nf6 {[%clk 0:03:04]} 4. Be3
{[%clk 0:02:58.4]} 4... Bg7 {[%clk 0:03:03.1]} 5. Nf3 {[%clk 0:02:59.6]} 5...
O-O {[%clk 0:03:03.3]} 6. h3 {[%clk 0:02:59.9]} 6... c6 {[%clk 0:03:04.4]} 7. a4
{[%clk 0:03:00.3]} 7... Nbd7 {[%clk 0:03:04.8]} 8. g4 {[%clk 0:02:56.2]} 8... e5
{[%clk 0:03:05.2]} 9. dxe5 {[%clk 0:02:54.4]} 9... Nxe5 {[%clk 0:02:55.9]} 10.
Nxe5 {[%clk 0:02:37.6]} 10... dxe5 {[%clk 0:02:57.8]} 11. Bc5 {[%clk 0:02:38.9]}
11... Qa5 {[%clk 0:02:48.1]} 12. b4 {[%clk 0:02:37.4]} 12... Qc7 {[%clk
0:02:48.8]} 13. Bd6 {[%clk 0:02:33.6]} 13... Qd8 {[%clk 0:02:48.6]} 14. Bxe5
{[%clk 0:02:21.5]} 14... Nxe4 {[%clk 0:01:40.4]} 15. Qxd8 {[%clk 0:02:10.1]}
15... Bxe5 {[%clk 0:01:39.5]} 16. Qxf8+ {[%clk 0:01:30.1]} 16... Kxf8 {[%clk
0:01:38.7]} 17. Nxe4 {[%clk 0:01:30.6]} 17... Bxa1 {[%clk 0:01:40.3]} 18. Bc4
{[%clk 0:01:31.8]} 18... Be5 {[%clk 0:01:00.5]} 19. O-O {[%clk 0:01:28.5]} 19...
h5 {[%clk 0:00:58.9]} 20. Re1 {[%clk 0:01:17.4]} 20... hxg4 {[%clk 0:00:54.9]}
21. Ng5 {[%clk 0:01:13.3]} 21... Bd4 {[%clk 0:00:55.1]} 22. Bxf7 {[%clk
0:01:02.4]} 22... g3 {[%clk 0:00:53.2]} 23. Re8+ {[%clk 0:01:01.7]} 23... Kg7
{[%clk 0:00:54.2]} 24. Rg8+ {[%clk 0:01:02.9]} 24... Kf6 {[%clk 0:00:55.3]} 25.
Rxg6+ {[%clk 0:01:01.5]} 25... Kf5 {[%clk 0:00:54.3]} 26. Nf3 {[%clk 0:00:52.9]}
26... Bxf2+ {[%clk 0:00:54.1]} 27. Kg2 {[%clk 0:00:53.6]} 27... Ke4 {[%clk
0:00:50]} 28. Rf6 {[%clk 0:00:22.7]} 28... Bd7 {[%clk 0:00:41.2]} 29. Bg6+
{[%clk 0:00:23.1]} 29... Ke3 {[%clk 0:00:42.1]} 30. Rf7 {[%clk 0:00:14.4]} 30...
Bxh3+ {[%clk 0:00:07.3]} 31. Kxh3 {[%clk 0:00:14.5]} 31... Ke2 {[%clk
0:00:08.9]} 32. Kg2 {[%clk 0:00:11]} 32... b5 {[%clk 0:00:09.4]} 33. axb5 {[%clk
0:00:10.6]} 33... cxb5 {[%clk 0:00:10.4]} 34. Bd3+ {[%clk 0:00:11.5]} 34... Kd1
{[%clk 0:00:11]} 35. Rh7 {[%clk 0:00:12.3]} 35... Kc1 {[%clk 0:00:11.6]} 36.
Bxb5 {[%clk 0:00:13.2]} 36... Kxc2 {[%clk 0:00:12.3]} 37. Bc6 {[%clk 0:00:13.7]}
37... Rc8 {[%clk 0:00:12.4]} 38. b5 {[%clk 0:00:14.3]} 38... Kc3 {[%clk
0:00:12.2]} 39. Ng5 {[%clk 0:00:12.6]} 39... Kb4 {[%clk 0:00:11]} 40. Ne4 {[%clk
0:00:10.2]} 40... Bb6 {[%clk 0:00:11.8]} 41. Nxg3 {[%clk 0:00:10.6]} 41... a6
{[%clk 0:00:13.1]} 42. Rh4+ {[%clk 0:00:11.2]} 42... Ka5 {[%clk 0:00:12.1]} 43.
Rh5 {[%clk 0:00:09.9]} 43... axb5 {[%clk 0:00:11.9]} 44. Bxb5 {[%clk 0:00:11.4]}
44... Rc2+ {[%clk 0:00:12.4]} 45. Kh3 {[%clk 0:00:12.7]} 45... Rc5 {[%clk
0:00:12]} 46. Be2 {[%clk 0:00:09.6]} 46... Rxh5+ {[%clk 0:00:12.2]} 47. Bxh5
{[%clk 0:00:11.5]} 47... Bc7 {[%clk 0:00:13.5]} 48. Nf5 {[%clk 0:00:12.5]} 48...
Kb4 {[%clk 0:00:14.8]} 49. Bf7 {[%clk 0:00:13.1]} 49... Kc5 {[%clk 0:00:16.6]}
50. Kg4 {[%clk 0:00:14.4]} 50... Be5 {[%clk 0:00:16.9]} 51. Kf3 {[%clk
0:00:15.6]} 51... Bh2 {[%clk 0:00:17.9]} 52. Ke4 {[%clk 0:00:16.9]} 52... Bb8
{[%clk 0:00:19.5]} 53. Ba2 {[%clk 0:00:16.2]} 53... Bh2 {[%clk 0:00:20.9]} 54.
Ne3 {[%clk 0:00:16.9]} 54... Bb8 {[%clk 0:00:22.4]} 55. Nc2 {[%clk 0:00:18.2]}
55... Bh2 {[%clk 0:00:23.7]} 56. Kd3 {[%clk 0:00:19.4]} 56... Bb8 {[%clk
0:00:25.2]} 57. Kc3 {[%clk 0:00:20.1]} 57... Bh2 {[%clk 0:00:26.7]} 58. Kb3
{[%clk 0:00:21.5]} 58... Be5 {[%clk 0:00:27.9]} 59. Ne1 {[%clk 0:00:22.4]} 59...
Bg3 {[%clk 0:00:28.6]} 60. Nd3+ {[%clk 0:00:23.2]} 60... Kd4 {[%clk 0:00:30]}
61. Kc2 {[%clk 0:00:24.5]} 61... Bb8 {[%clk 0:00:31.1]} 62. Nb4 {[%clk
0:00:24.8]} 62... Bh2 {[%clk 0:00:32.3]} 63. Bb3 {[%clk 0:00:25.3]} 63... Kc5
{[%clk 0:00:33.4]} 64. Nd3+ {[%clk 0:00:24.8]} 64... Kd4 {[%clk 0:00:34.7]} 65.
Ne1 {[%clk 0:00:26.2]} 65... Bb8 {[%clk 0:00:35.5]} 66. Kd2 {[%clk 0:00:26.6]}
66... Bf4+ {[%clk 0:00:35.7]} 67. Ke2 {[%clk 0:00:28.2]} 67... Bb8 {[%clk
0:00:36.6]} 68. Be6 {[%clk 0:00:20.4]} 68... Bg3 {[%clk 0:00:36.2]} 69. Nf3+
{[%clk 0:00:20.8]} 69... Kc5 {[%clk 0:00:37.5]} 70. Kd3 {[%clk 0:00:21.3]} 70...
Bb8 {[%clk 0:00:38.9]} 71. Nd2 {[%clk 0:00:21]} 71... Bf4 {[%clk 0:00:39.5]} 72.
Ne4+ {[%clk 0:00:21.4]} 72... Kc6 {[%clk 0:00:40.4]} 73. Kc4 {[%clk 0:00:22.8]}
73... Bh2 {[%clk 0:00:41.3]} 74. Bd5+ {[%clk 0:00:24]} 74... Kd7 {[%clk
0:00:42.4]} 75. Kd4 {[%clk 0:00:23.6]} 75... Bg1+ {[%clk 0:00:42.9]} 76. Ke5
{[%clk 0:00:24.1]} 76... Bh2+ {[%clk 0:00:44.2]} 77. Kf5 {[%clk 0:00:25.7]}
77... Bb8 {[%clk 0:00:44.5]} 78. Ba8 {[%clk 0:00:23.3]} 78... Bh2 {[%clk
0:00:45.1]} 1/2-1/2

[Event "*** Qualifier 3: Titled Tuesday 3|2 Blitz"]
[Site "Chess.com"]
[Date "2017.04.18"]
[Round "9"]
[White "WanderingPuppet"]
[Black "Alex_Molchanov"]
[Result "1-0"]
[WhiteElo "2314"]
[BlackElo "2414"]
[TimeControl "180+2"]
[EndTime "15:02:13 PDT"]
[Termination "WanderingPuppet won by resignation"]

1. e4 {[%clk 0:02:50.9]} 1... c6 {[%clk 0:03:00.7]} 2. Nc3 {[%clk 0:02:49.7]}
2... d5 {[%clk 0:03:02.6]} 3. Nf3 {[%clk 0:02:50.2]} 3... Nf6 {[%clk 0:03:03]}
4. e5 {[%clk 0:02:46.2]} 4... Ne4 {[%clk 0:03:04]} 5. d4 {[%clk 0:02:44]} 5...
Nxc3 {[%clk 0:02:51.8]} 6. bxc3 {[%clk 0:02:44.3]} 6... Bf5 {[%clk 0:02:53.4]}
7. Bd3 {[%clk 0:02:41.5]} 7... Bxd3 {[%clk 0:02:53.6]} 8. Qxd3 {[%clk 0:02:41]}
8... e6 {[%clk 0:02:55.1]} 9. Rb1 {[%clk 0:02:38.7]} 9... b5 {[%clk 0:02:53.8]}
10. O-O {[%clk 0:02:35.1]} 10... Nd7 {[%clk 0:02:53.6]} 11. Ng5 {[%clk
0:02:22.8]} 11... h6 {[%clk 0:02:40.6]} 12. Nxe6 {[%clk 0:02:14.1]} 12... fxe6
{[%clk 0:02:41.6]} 13. Qg6+ {[%clk 0:02:10.3]} 13... Ke7 {[%clk 0:02:42.9]} 14.
Ba3+ {[%clk 0:01:56.9]} 14... c5 {[%clk 0:02:38.5]} 15. dxc5 {[%clk 0:01:42.2]}
15... Qe8 {[%clk 0:02:39.1]} 16. c6+ {[%clk 0:01:31]} 16... Kd8 {[%clk
0:02:38.6]} 17. Qxe8+ {[%clk 0:01:25.6]} 17... Kxe8 {[%clk 0:02:40.5]} 18. cxd7+
{[%clk 0:01:24.8]} 18... Kxd7 {[%clk 0:02:42.4]} 19. Bxf8 {[%clk 0:01:23.4]}
19... Rhxf8 {[%clk 0:02:44.3]} 20. Rxb5 {[%clk 0:01:22.8]} 20... Rfc8 {[%clk
0:02:19.1]} 21. Rb7+ {[%clk 0:01:12.9]} 21... Rc7 {[%clk 0:02:20.3]} 22. Rxc7+
{[%clk 0:01:09.4]} 22... Kxc7 {[%clk 0:02:22.2]} 23. Rb1 {[%clk 0:01:03.8]}
23... Rf8 {[%clk 0:02:22.9]} 24. Rb4 {[%clk 0:00:59.6]} 24... g5 {[%clk
0:02:20.1]} 25. g3 {[%clk 0:00:58.2]} 25... Rf3 {[%clk 0:02:19.9]} 26. c4 {[%clk
0:00:38.9]} 26... Kc6 {[%clk 0:02:21]} 27. cxd5+ {[%clk 0:00:38.6]} 27... Kxd5
{[%clk 0:02:21.6]} 28. Rb5+ {[%clk 0:00:34.2]} 28... Kd4 {[%clk 0:02:17.8]} 29.
Ra5 {[%clk 0:00:29.7]} 29... Rc3 {[%clk 0:02:12.6]} 30. Rxa7 {[%clk 0:00:27.1]}
30... Kxe5 {[%clk 0:02:11.2]} 31. a4 {[%clk 0:00:21.9]} 31... Rxc2 {[%clk
0:02:12.1]} 32. a5 {[%clk 0:00:21.1]} 32... Ra2 {[%clk 0:02:09.6]} 33. Kg2
{[%clk 0:00:19.5]} 33... g4 {[%clk 0:01:56.8]} 34. Rg7 {[%clk 0:00:17.3]} 34...
Kf5 {[%clk 0:01:52.5]} 35. Rh7 {[%clk 0:00:14.2]} 35... Rxa5 {[%clk 0:01:28.8]}
36. Rxh6 {[%clk 0:00:14.7]} 36... Ra1 {[%clk 0:01:27.4]} 37. Rh5+ {[%clk
0:00:13.5]} 37... Kf6 {[%clk 0:01:24.2]} 38. h3 {[%clk 0:00:12.4]} 38... gxh3+
{[%clk 0:01:23.5]} 39. Rxh3 {[%clk 0:00:14.3]} 39... Kg5 {[%clk 0:01:22]} 40.
Rh4 {[%clk 0:00:15.1]} 40... e5 {[%clk 0:01:20.9]} 41. Rb4 {[%clk 0:00:15.8]}
41... Kf5 {[%clk 0:01:16.3]} 42. Rb3 {[%clk 0:00:15.8]} 42... Ra5 {[%clk
0:01:13.3]} 43. Rb8 {[%clk 0:00:14.8]} 43... Ra2 {[%clk 0:01:07.8]} 44. Rf8+
{[%clk 0:00:14.9]} 44... Kg5 {[%clk 0:01:07]} 45. Re8 {[%clk 0:00:14.5]} 45...
Kf5 {[%clk 0:01:07.1]} 46. Rf8+ {[%clk 0:00:14.2]} 46... Ke6 {[%clk 0:01:04.8]}
47. Kf3 {[%clk 0:00:13.9]} 47... Ra4 {[%clk 0:01:02.1]} 48. g4 {[%clk
0:00:12.8]} 48... Ke7 {[%clk 0:01:03.2]} 49. Rf5 {[%clk 0:00:13.1]} 49... Ke6
{[%clk 0:01:04.6]} 50. Kg3 {[%clk 0:00:13]} 50... Ra8 {[%clk 0:00:45.8]} 51. Rf3
{[%clk 0:00:09.5]} 51... Rh8 {[%clk 0:00:43]} 52. g5 {[%clk 0:00:08.8]} 52...
Rh1 {[%clk 0:00:27.9]} 53. Rf6+ {[%clk 0:00:08.9]} 53... Ke7 {[%clk 0:00:28.9]}
54. Kg4 {[%clk 0:00:09.2]} 54... Rh2 {[%clk 0:00:26.7]} 55. f3 {[%clk
0:00:09.6]} 55... Rh1 {[%clk 0:00:24.1]} 56. Kf5 {[%clk 0:00:08.1]} 56... Rg1
{[%clk 0:00:19.1]} 57. Re6+ {[%clk 0:00:07.2]} 57... Kf7 {[%clk 0:00:19.9]} 58.
Rxe5 {[%clk 0:00:08.1]} 58... Ra1 {[%clk 0:00:19.1]} 59. f4 {[%clk 0:00:08.9]}
59... Ra7 {[%clk 0:00:19.2]} 60. g6+ {[%clk 0:00:07.7]} 60... Kg7 {[%clk
0:00:19.9]} 61. Kg5 {[%clk 0:00:08.8]} 61... Ra1 {[%clk 0:00:18.4]} 62. Re7+
{[%clk 0:00:09.1]} 62... Kf8 {[%clk 0:00:19.9]} 63. Rf7+ {[%clk 0:00:07.1]}
63... Kg8 {[%clk 0:00:20.8]} 64. Rc7 {[%clk 0:00:07.1]} 64... Ra6 {[%clk
0:00:20]} 65. f5 {[%clk 0:00:06.1]} 65... Ra5 {[%clk 0:00:21.2]} 66. Kf6 {[%clk
0:00:05]} 66... Ra6+ {[%clk 0:00:22.4]} 67. Kg5 {[%clk 0:00:05.9]} 67... Ra5
{[%clk 0:00:24]} 68. Kh6 {[%clk 0:00:05.8]} 68... Ra8 {[%clk 0:00:20.2]} 69. f6
{[%clk 0:00:06.4]} 69... Rb8 {[%clk 0:00:21]} 70. Rd7 {[%clk 0:00:04.5]} 70...
Ra8 {[%clk 0:00:21.7]} 71. Re7 {[%clk 0:00:05.5]} 71... Rb8 {[%clk 0:00:22.1]}
72. f7+ {[%clk 0:00:06.3]} 72... Kf8 {[%clk 0:00:22.8]} 73. Re8+ {[%clk
0:00:06.5]} 73... Rxe8 {[%clk 0:00:23.2]} 74. fxe8=Q+ {[%clk 0:00:08.4]} 74...
Kxe8 {[%clk 0:00:25.1]} 75. Kh7 {[%clk 0:00:09.6]} 75... Kf8 {[%clk 0:00:26.2]}
76. g7+ {[%clk 0:00:10.5]} 76... Ke7 {[%clk 0:00:28.1]} 77. g8=Q {[%clk
0:00:11.9]} 1-0